fUST/lending_fUST_20251120
["ID","MTS","AMOUNT","RATE_DAILY","PERIOD"]
[394502950,1763641838459,-994.1700005,6.618e-05,2]
[394502952,1763641838470,-643.09343148,6.618e-05,2]
[394502954,1763641838483,-220.97992592,6.618e-05,2]
[394502956,1763641838492,-190.48628611,6.618e-05,2]
[394502958,1763641838503,-2420.1853518,6.618e-05,2]
[394502960,1763641838514,-282.83175995,6.618e-05,2]
[394502963,1763641838525,-894.61203176,6.618e-05,2]
[394503086,1763641839766,-659.24525873,6.618e-05,2]
[394503087,1763641839776,-4447.36068835,6.618e-05,2]
[394503088,1763641839785,-4447.36068835,6.618e-05,2]
[394503089,1763641839794,-4447.36068835,6.618e-05,2]
[394503090,1763641839804,-4447.36068835,6.618e-05,2]
[394503091,1763641839813,-4447.36068835,6.618e-05,2]
[394503092,1763641839823,-4447.36068835,6.618e-05,2]
[394503093,1763641839832,-1671.07717054,6.618e-05,2]
[394503120,1763641841742,-4e-08,6.618e-05,2]
[394503121,1763641842123,-2776.28351777,6.618e-05,2]
[394503122,1763641842133,-4447.36068835,6.618e-05,2]
[394503123,1763641842143,-4447.36068835,6.618e-05,2]
[394503124,1763641842154,-4447.36068835,6.618e-05,2]
[394503125,1763641842164,-4447.36068835,6.618e-05,2]
[394503126,1763641842174,-4447.36068835,6.618e-05,2]
[394503127,1763641842184,-4447.36068835,6.618e-05,2]
[394503128,1763641842194,-4447.36068835,6.618e-05,2]
[394503129,1763641842204,-4447.36068835,6.618e-05,2]
[394503130,1763641842214,-4447.36068835,6.618e-05,2]
[394503131,1763641842225,-4447.36068835,6.618e-05,2]
[394503132,1763641842234,-4447.36068835,6.618e-05,2]
[394503134,1763641842244,-4447.36068835,6.618e-05,2]
[394503135,1763641842253,-4447.36068835,6.618e-05,2]
[394503136,1763641842263,-4447.36068835,6.618e-05,2]
[394503137,1763641842272,-4447.36068835,6.618e-05,2]
[394503138,1763641842283,-4447.36068835,6.618e-05,2]
[394503139,1763641842293,-4447.36068835,6.618e-05,2]
[394503140,1763641842303,-4447.36068835,6.618e-05,2]
[394503141,1763641842312,-4447.36068835,6.618e-05,2]
[394503142,1763641842322,-4447.36068835,6.618e-05,2]
[394503143,1763641842332,-4447.36068835,6.618e-05,2]
[394503144,1763641842342,-4447.36068835,6.618e-05,2]
[394503145,1763641842352,-4447.36068835,6.618e-05,2]
[394503146,1763641842361,-4447.36068834,6.618e-05,2]
[394503147,1763641842371,-4447.36068834,6.618e-05,2]
[394503148,1763641842380,-4447.36068834,6.618e-05,2]
[394503149,1763641842390,-4447.36068834,6.618e-05,2]
[394503150,1763641842399,-300.0,6.751e-05,2]
[394503151,1763641842409,-300.0,6.751e-05,2]
[394503152,1763641842419,-300.0,6.751e-05,2]
[394503153,1763641842429,-300.0,6.751e-05,2]
[394503154,1763641842438,-300.0,6.751e-05,2]
[394503155,1763641842448,-300.0,6.751e-05,2]
[394503156,1763641842457,-300.0,6.751e-05,2]
[394503157,1763641842467,-300.0,6.751e-05,2]
[394503158,1763641842476,-300.0,6.751e-05,2]
[394503159,1763641842485,-300.0,6.751e-05,2]
[394503160,1763641842494,-300.0,6.751e-05,2]
[394503161,1763641842503,-300.0,6.751e-05,2]
[394503162,1763641842513,-300.0,6.751e-05,2]
[394503163,1763641842522,-300.0,6.751e-05,2]
[394503164,1763641842531,-300.0,6.751e-05,2]
[394503165,1763641842540,-600.0,6.751e-05,2]
[394503166,1763641842550,-219.0,7.099e-05,2]
[394503167,1763641842559,-420.0,7.099e-05,2]
[394503168,1763641842567,-500.0,7.141e-05,2]
[394503169,1763641842576,-500.0,7.37e-05,2]
[394503170,1763641842585,-720.0,7.427e-05,2]
[394503171,1763641842594,-180.84576467,7.548e-05,2]
[394503172,1763641842603,-151.0,7.548e-05,2]
[394503173,1763641842611,-160.13598951,7.548e-05,2]
[394503174,1763641842620,-163.1336594,7.548e-05,2]
[394503175,1763641842629,-178.6549524,7.548e-05,2]
[394503176,1763641842638,-151.0,7.548e-05,2]
[394503177,1763641842647,-201.99731467,7.548e-05,2]
[394503178,1763641842656,-500.0,7.548e-05,2]
[394503179,1763641842665,-152.19177568,7.548e-05,2]
[394503180,1763641842674,-151.0,7.575e-05,2]
[394503181,1763641842683,-151.0,7.575e-05,2]
[394503182,1763641842691,-509.84351697,7.575e-05,2]
[394503183,1763641842700,-500.0,7.63e-05,2]
[394503184,1763641842709,-1000.0,7.689e-05,2]
[394503185,1763641842718,-587.0,7.809e-05,2]
[394503186,1763641842727,-10000.01,7.88e-05,2]
[394503187,1763641842735,-1000.0,7.918e-05,2]
[394503188,1763641842744,-864.0,8.169e-05,2]
[394503189,1763641842753,-510.75344449,8.178e-05,2]
[394503190,1763641842763,-1182.5738181,8.212e-05,2]
[394503191,1763641842771,-1110.81772097,8.237e-05,2]
[394503192,1763641842780,-630.0,8.422e-05,2]
[394503193,1763641842789,-989.0,8.422e-05,2]
[394503194,1763641842798,-2151.0,8.422e-05,2]
[394503195,1763641842807,-414.0,8.422e-05,2]
[394503196,1763641842815,-414.0,8.422e-05,2]
[394503197,1763641842824,-1604.63480434,8.466e-05,2]
[394503198,1763641842833,-823.0,8.59e-05,2]
[394503199,1763641842842,-192.94416639,8.606e-05,2]
[394503200,1763641842851,-1000.0,8.986e-05,2]
[394503201,1763641842861,-464.0,9.449e-05,2]
[394503202,1763641842870,-151.0,9.479e-05,2]
[394503203,1763641842878,-151.0,9.506e-05,2]
[394503204,1763641842887,-198.0,9.534e-05,2]
[394503205,1763641842896,-1000.0,9.885e-05,2]
[394503206,1763641842905,-244.0,9.885e-05,2]
[394503207,1763641842915,-734.15025386,0.00010488,2]
[394503208,1763641842924,-1321.47045695,0.00010528,2]
[394503209,1763641842934,-2349.28081235,0.00010568,2]
[394503210,1763641842950,-222.37632736,0.00010606,2]
[394503211,1763641842959,-3670.75126929,0.00010609,2]
[394503212,1763641842968,-500.0,0.00010812,2]
[394503213,1763641842977,-151.0,0.00010812,2]
[394503214,1763641842986,-151.0,0.00010812,2]
[394503215,1763641842996,-500.0,0.00010812,2]
[394503216,1763641843005,-500.0,0.00010812,2]
[394503217,1763641843014,-151.0,0.00010812,2]
[394503218,1763641843023,-500.0,0.00010812,2]
[394503219,1763641843032,-500.0,0.00010812,2]
[394503220,1763641843042,-151.0,0.00010812,2]
[394503221,1763641843051,-500.0,0.00010812,2]
[394503222,1763641843060,-500.0,0.00010812,2]
[394503223,1763641843069,-211.43270025,0.00010812,2]
[394503224,1763641843077,-156.26290751,0.00010812,2]
[394503225,1763641843086,-152.17009784,0.00010812,2]
[394503226,1763641843095,-610.38392828,0.00010839,2]
[394503227,1763641843105,-151.0,0.00010839,2]
[394503228,1763641843114,-154.57244784,0.00010839,2]
[394503229,1763641843123,-500.0,0.00010839,2]
[394503230,1763641843132,-606.97186486,0.00010839,2]
[394503231,1763641843141,-151.0,0.00010839,2]
[394503232,1763641843150,-500.0,0.00010839,2]
[394503233,1763641843159,-500.0,0.00010839,2]
[394503234,1763641843169,-151.0,0.00010839,2]
[394503235,1763641843177,-500.0,0.00010839,2]
[394503236,1763641843187,-500.0,0.00010839,2]
[394503237,1763641843195,-151.0,0.00010867,2]
[394503238,1763641843204,-427.41774473,0.00010867,2]
[394503239,1763641843213,-151.0,0.00010867,2]
[394503240,1763641843222,-500.0,0.00010867,2]
[394503241,1763641843231,-500.0,0.00010867,2]
[394503242,1763641843240,-165.68442234,0.00010867,2]
[394503243,1763641843248,-167.44701213,0.00010867,2]
[394503244,1763641843257,-332.55298787,0.00010867,2]
[394503245,1763641843266,-1000.0,0.00010873,2]
[394503246,1763641843275,-492.0,0.00010873,2]
[394503247,1763641843284,-158.69926718,0.00010894,2]
[394503249,1763641843293,-500.0,0.00010894,2]
[394503250,1763641843302,-500.0,0.00010894,2]
[394503251,1763641843311,-500.0,0.00010922,2]
[394503252,1763641843320,-265.53755189,0.00010922,2]
[394503253,1763641843329,-500.0,0.00010949,2]
[394503254,1763641843339,-634.86904746,0.00010976,2]
[394503256,1763641843348,-188.459,0.00011019,2]
[394503257,1763641843356,-630.0,0.00011422,2]
[394503258,1763641843366,-989.0,0.00011422,2]
[394503259,1763641843374,-2151.0,0.00011422,2]
[394503260,1763641843383,-414.0,0.00011422,2]
[394503261,1763641843392,-414.0,0.00011422,2]
[394503262,1763641843401,-698.33873286,0.00011736,2]
[394503263,1763641843410,-1000.0,0.0001196,2]
[394503264,1763641843419,-791.0,0.0001196,2]
[394503265,1763641843428,-1257.00971915,0.00012176,2]
[394503266,1763641843437,-251.80848833,0.00012606,2]
[394503267,1763641843446,-2234.68394516,0.00012616,2]
[394503268,1763641843455,-465.77092532,0.00012974,2]
[394503269,1763641843463,-400.97185895,0.00013113,2]
[394503270,1763641843472,-1000.0,0.00013157,2]
[394503271,1763641843481,-1000.0,0.00013157,2]
[394503272,1763641843491,-500.0,0.00013698,2]
[394503273,1763641843500,-500.274373,0.00013698,2]
[394503274,1763641843509,-292.44538276,0.00013698,2]
[394503275,1763641844341,-707.55461724,0.00013698,2]
[394503276,1763641844350,-256.0805683,0.00013698,2]
[394503295,1763641882297,169.67,0.00032877,120]
[394503324,1763641922733,-208.96615424,6.52e-05,2]
[394503355,1763641949165,760.06143929,0.00014002,7]
[394503356,1763641949903,-478.07373098,6.52e-05,2]
[394503368,1763641963445,500.0,6.454e-05,2]
[394503369,1763641965219,707.19851431,6.42e-05,2]
[394503409,1763642244293,150.0,0.00012646,30]
[394503410,1763642244691,150.0,0.00013796,30]
[394503411,1763642245089,150.0,0.00014946,30]
[394503425,1763642322885,150.0,0.00012306,30]
[394503426,1763642323349,150.0,0.00013424,30]
[394503427,1763642323772,150.0,0.00014543,30]
[394503428,1763642324177,150.0,0.00015662,30]
[394503429,1763642327039,1000.0,0.00032,120]
[394503430,1763642361592,1000.0,0.00031,120]
[394503431,1763642401211,150.0,0.00012714,30]
[394503432,1763642402103,150.0,0.0001387,30]
[394503433,1763642402527,150.0,0.00015026,30]
[394503434,1763642426085,394.35599032,0.00013989,7]
[394503443,1763642478911,150.0,0.00014394,30]
[394503444,1763642479320,150.0,0.00015703,30]
[394503451,1763642502458,1001.64967627,0.00039589,21]
[394503468,1763642550456,3037.2055114,0.00013866,7]
[394503470,1763642557124,150.0,9.094e-05,30]
[394503471,1763642557568,150.0,9.921e-05,30]
[394503472,1763642557996,150.0,0.00010747,30]
[394503473,1763642558420,150.0,0.00011574,30]
[394503474,1763642558862,150.0,0.00012401,30]
[394503475,1763642559315,160.21,0.00013227,30]
[394503476,1763642559744,186.91,0.00014054,30]
[394503477,1763642560123,213.62,0.00014881,30]
[394503479,1763642630708,150.0,9.625e-05,30]
[394503480,1763642631106,150.0,0.000105,30]
[394503481,1763642631539,150.0,0.00011375,30]
[394503482,1763642631981,150.0,0.0001225,30]
[394503483,1763642632466,150.0,0.00013125,30]
[394503485,1763642682814,533.58,0.00039588,30]
[394503486,1763642683058,533.58,0.00039588,30]
[394503487,1763642683301,533.58,0.00039588,30]
[394503488,1763642683530,533.58,0.00039588,30]
[394503489,1763642683765,533.58,0.00039588,30]
[394503490,1763642684021,533.58,0.00039588,30]
[394503492,1763642684275,533.58,0.00039588,30]
[394503493,1763642684517,533.58,0.00039588,30]
[394503494,1763642684759,533.58,0.00039588,30]
[394503495,1763642685028,533.58,0.00039588,30]
[394503496,1763642685218,533.58,0.00039588,120]
[394503497,1763642685445,533.58,0.00039588,120]
[394503498,1763642685677,533.58,0.00039588,120]
[394503499,1763642685908,533.58,0.00039588,120]
[394503500,1763642686140,533.58,0.00039588,120]
[394503501,1763642686375,533.58,0.00039588,120]
[394503502,1763642686625,533.58,0.00039588,120]
[394503503,1763642686855,533.58,0.00039588,120]
[394503504,1763642687099,533.58,0.00039588,120]
[394503505,1763642687372,533.58,0.00039588,120]
[394503506,1763642687646,533.58,0.00039588,120]
[394503507,1763642687902,533.58,0.00039588,120]
[394503508,1763642688228,533.58,0.00039588,120]
[394503509,1763642688476,533.65463158,0.00039588,120]
[394503510,1763642704987,150.0,0.00010563,30]
[394503511,1763642705424,150.0,0.00011523,30]
[394503512,1763642705880,150.0,0.00012483,30]
[394503513,1763642706282,150.0,0.00013443,30]
[394503522,1763642776822,150.0,0.00014023,30]
[394503523,1763642777231,150.0,0.00015298,30]
[394503527,1763642831472,150.0,6.293e-05,2]
[394503528,1763642847076,150.0,9.452e-05,30]
[394503530,1763642854374,150.0,6.325e-05,2]
[394503533,1763642876814,150.0,6.325e-05,2]
[394503542,1763642900714,150.0,6.325e-05,2]
[394503545,1763642910499,-150.0,6.389e-05,2]
[394503546,1763642910524,-171.95267696,6.42e-05,2]
[394503548,1763642921463,-261.94749561,6.419e-05,2]
[394503549,1763642922293,500.0,0.00039588,30]
[394503550,1763642922528,500.0,0.00039588,30]
[394503551,1763642922757,500.0,0.00039588,30]
[394503552,1763642923017,500.0,0.00039588,30]
[394503553,1763642923313,500.0,0.00039588,30]
[394503554,1763642923568,500.0,0.00039588,30]
[394503555,1763642923817,500.0,0.00039588,30]
[394503556,1763642924031,500.0,0.00039588,30]
[394503557,1763642924365,500.0,0.00039588,30]
[394503558,1763642924638,500.0,0.00039588,30]
[394503562,1763642924875,468.86850214,0.00039588,120]
[394503577,1763642926689,-200.95741177,6.355e-05,2]
[394503580,1763642939736,-300.0222215,6.355e-05,2]
[394503585,1763642952899,-156.63332435,6.355e-05,2]
[394503589,1763642969169,-220.75845458,6.355e-05,2]
[394503591,1763642978987,-337.99093701,6.355e-05,2]
[394503595,1763643002973,-171.01063317,6.355e-05,2]
[394503598,1763643027471,-214.41686065,6.355e-05,2]
[394503624,1763643032105,-2798.21015697,6.355e-05,2]
[394503625,1763643032115,-150.0,6.387e-05,2]
[394503626,1763643032124,-300.0,6.418e-05,2]
[394503627,1763643032133,-300.0,6.418e-05,2]
[394503628,1763643032143,-27839.61822649,6.42e-05,2]
[394503629,1763643032154,-1000.0,6.42e-05,2]
[394503630,1763643032164,-670938.20594132,6.42e-05,2]
[394503631,1763643032175,-22839.98138844,6.42e-05,2]
[394503632,1763643033430,-188.48899708,6.418e-05,2]
[394503633,1763643034950,1575.84653733,0.00013994,7]
[394503666,1763643037989,-301.25937483,6.418e-05,2]
[394503668,1763643038002,-10.25162809,6.418e-05,2]
[394503669,1763643038011,-500.0,6.418e-05,2]
[394503671,1763643038020,-500.0,6.418e-05,2]
[394503673,1763643038030,-267.14360703,6.418e-05,2]
[394503675,1763643038040,-500.0,6.418e-05,2]
[394503677,1763643038049,-500.0,6.418e-05,2]
[394503679,1763643038058,-500.0,6.418e-05,2]
[394503681,1763643038067,-291.48045434,6.418e-05,2]
[394503907,1763643054391,-300.0222215,6.354e-05,2]
[394503947,1763643089220,-350.20249363,6.354e-05,2]
[394503960,1763643096157,-285.58313935,6.354e-05,2]
[394503982,1763643107200,-196.38694873,6.354e-05,2]
[394503987,1763643110823,600.0,0.00039588,120]
[394504004,1763643118467,-164.44491684,6.354e-05,2]
[394504005,1763643124458,-351.61666783,6.354e-05,2]
[394504006,1763643133307,-300.0,6.354e-05,2]
[394504008,1763643139904,-103.96994784,6.354e-05,2]
[394504009,1763643139926,-82.63627297,6.417e-05,2]
[394504019,1763643151541,-203.10472269,6.353e-05,2]
[394504020,1763643168103,-14.25900434,6.353e-05,2]
[394504021,1763643168126,-217.36372703,6.417e-05,2]
[394504022,1763643168154,-78.35631932,6.417e-05,2]
[394504023,1763643185692,494.66972618,6.289e-05,2]
[394504024,1763643207778,494.66972618,6.289e-05,2]
[394504025,1763643230450,494.66972618,6.289e-05,2]
[394504052,1763643252629,262.74647282,6.289e-05,2]
[394504097,1763643368449,494.66972618,6.289e-05,2]
[394504104,1763643419163,-150.0,6.321e-05,2]
[394504112,1763643444328,1000.0,0.00039533,120]
[394504114,1763643463978,150.0,6.321e-05,2]
[394504116,1763643471805,150.0,6.321e-05,2]
[394504119,1763643487866,150.0,6.321e-05,2]
[394504120,1763643496275,150.0,6.321e-05,2]
[394504123,1763643511794,150.0,6.321e-05,2]
[394504127,1763643519631,150.0,6.321e-05,2]
[394504128,1763643535165,150.0,6.321e-05,2]
[394504131,1763643543016,150.0,6.321e-05,2]
[394504134,1763643558251,150.0,6.321e-05,2]
[394504135,1763643566240,150.0,6.321e-05,2]
[394504138,1763643581494,150.0,6.321e-05,2]
[394504140,1763643589258,150.0,6.321e-05,2]
[394504147,1763643604611,150.0,6.321e-05,2]
[394504149,1763643612952,6973.75454596,6.321e-05,2]
[394504150,1763643620982,1076.25545404,6.321e-05,2]
[394504151,1763643621006,5112.09768036,6.321e-05,2]
[394504152,1763643628780,3810.73474628,6.321e-05,2]
[394504154,1763643637409,1077.17757336,6.321e-05,2]
[394504155,1763643637433,5896.5769726,6.321e-05,2]
[394504156,1763643645275,1281.60668874,6.321e-05,2]
[394504158,1763643660580,2821.82633866,6.321e-05,2]
[394504159,1763643660606,4151.9282073,6.321e-05,2]
[394504162,1763643683158,300.0,6.32e-05,2]
[394504174,1763643705552,300.0,6.32e-05,2]
[394504177,1763643728432,300.0,6.32e-05,2]
[394504179,1763643750936,300.0,6.32e-05,2]
[394504182,1763643773347,248.27859098,6.32e-05,2]
[394504191,1763643815275,-500.0,6.384e-05,2]
[394504192,1763643815308,-500.0,6.384e-05,2]
[394504193,1763643815345,-500.0,6.384e-05,2]
[394504194,1763643815379,-500.0,6.384e-05,2]
[394504195,1763643815413,-500.0,6.384e-05,2]
[394504196,1763643815451,-500.0,6.384e-05,2]
[394504197,1763643815488,-500.0,6.384e-05,2]
[394504198,1763643815524,-152.49903867,6.384e-05,2]
[394504199,1763643815557,-500.0,6.384e-05,2]
[394504200,1763643815590,-500.0,6.384e-05,2]
[394504201,1763643815624,-195.01192266,6.384e-05,2]
[394504202,1763643815914,-304.98807734,6.384e-05,2]
[394504203,1763643815950,-500.0,6.384e-05,2]
[394504204,1763643815984,-500.0,6.384e-05,2]
[394504205,1763643816017,-500.0,6.384e-05,2]
[394504206,1763643816050,-500.0,6.384e-05,2]
[394504207,1763643816083,-500.0,6.384e-05,2]
[394504208,1763643816112,-300.0,6.384e-05,2]
[394504210,1763643840683,266.33817163,6.384e-05,2]
[394504212,1763643844932,300.0,6.384e-05,2]
[394504215,1763643902116,300.0,6.384e-05,2]
[394504218,1763643902580,300.0,6.384e-05,2]
[394504219,1763643907142,300.0,6.384e-05,2]
[394504220,1763643907174,1200.0,6.384e-05,2]
[394504222,1763643912469,1123.69567369,6.32e-05,2]
[394504223,1763643912496,10000.01,6.32e-05,2]
[394504224,1763643912523,10000.01,6.32e-05,2]
[394504225,1763643912549,10000.01,6.32e-05,2]
[394504226,1763643912574,10000.01,6.32e-05,2]
[394504227,1763643912599,10000.01,6.32e-05,2]
[394504228,1763643912625,10000.01,6.32e-05,2]
[394504229,1763643912650,10000.01,6.32e-05,2]
[394504231,1763643935473,392.45580484,6.194e-05,2]
[394504240,1763644015000,-300.0,6.256e-05,2]
[394504242,1763644039681,-6266.14354189,6.257e-05,2]
[394504243,1763644039792,-4220.93869362,6.257e-05,2]
[394504244,1763644039816,-1558.13261276,6.257e-05,2]
[394504245,1763644042793,-10000.01,6.32e-05,2]
[394504246,1763644065862,1965.17210943,6.194e-05,2]
[394504247,1763644076632,166.578041,5.419e-05,2]
[394504248,1763644076850,166.578041,5.419e-05,120]
[394504260,1763644183431,1300.0,0.00012,3]
[394504262,1763644194137,1411.0,0.00014,4]
[394504265,1763644206282,-300.0,6.254e-05,2]
[394504266,1763644206313,-300.0,6.254e-05,2]
[394504267,1763644206341,-1200.0,6.254e-05,2]
[394504268,1763644206369,-525.55682166,6.255e-05,2]
[394504269,1763644206398,-500.0,6.255e-05,2]
[394504270,1763644206440,-682.77491552,6.255e-05,2]
[394504271,1763644206472,-500.0,6.255e-05,2]
[394504272,1763644206515,-682.77491552,6.255e-05,2]
[394504273,1763644206547,-117.7966946,6.255e-05,2]
[394504274,1763644206682,-382.2033054,6.255e-05,2]
[394504276,1763644209214,-300.0,6.254e-05,2]
[394504277,1763644209252,-682.77491552,6.255e-05,2]
[394504278,1763644209283,-500.0,6.255e-05,2]
[394504279,1763644209322,-682.77491552,6.255e-05,2]
[394504280,1763644209354,-194.22350758,6.255e-05,2]
[394504281,1763644209393,-682.77491552,6.255e-05,2]
[394504282,1763644209431,-682.77491552,6.255e-05,2]
[394504283,1763644209462,-500.0,6.255e-05,2]
[394504284,1763644209500,-682.77491552,6.255e-05,2]
[394504285,1763644209648,-183.81382964,6.255e-05,2]
[394504340,1763644232033,-150.0,6.254e-05,2]
[394504342,1763644232044,-316.18617036,6.255e-05,2]
[394504344,1763644232057,-387.78107713,6.255e-05,2]
[394504348,1763644232084,-294.99383839,6.255e-05,2]
[394504350,1763644232095,-682.77491552,6.255e-05,2]
[394504352,1763644232104,-682.77491552,6.255e-05,2]
[394504354,1763644232114,-500.0,6.255e-05,2]
[394504356,1763644232125,-682.77491552,6.255e-05,2]
[394504358,1763644232134,-682.77491552,6.255e-05,2]
[394504360,1763644232144,-682.77491552,6.255e-05,2]
[394504363,1763644232153,-682.77491552,6.255e-05,2]
[394504366,1763644232163,-682.77491552,6.255e-05,2]
[394504368,1763644232172,-682.77491552,6.255e-05,2]
[394504369,1763644232181,-682.77491552,6.255e-05,2]
[394504371,1763644232190,-682.77491552,6.255e-05,2]
[394504373,1763644232200,-682.77491552,6.255e-05,2]
[394504375,1763644232209,-682.77491552,6.255e-05,2]
[394504377,1763644232218,-682.77491552,6.255e-05,2]
[394504379,1763644232227,-682.77491552,6.255e-05,2]
[394504380,1763644232237,-682.77491552,6.255e-05,2]
[394504382,1763644232247,-682.77491552,6.255e-05,2]
[394504384,1763644232256,-682.77491552,6.255e-05,2]
[394504386,1763644232266,-682.77491552,6.255e-05,2]
[394504388,1763644232275,-682.77491552,6.255e-05,2]
[394504390,1763644232284,-682.77491552,6.255e-05,2]
[394504391,1763644232293,-682.77491552,6.255e-05,2]
[394504393,1763644232303,-682.77491552,6.255e-05,2]
[394504395,1763644232313,-682.77491552,6.255e-05,2]
[394504397,1763644232322,-682.77491552,6.255e-05,2]
[394504399,1763644232331,-682.77491552,6.255e-05,2]
[394504401,1763644232342,-682.77491552,6.255e-05,2]
[394504403,1763644232351,-682.77491552,6.255e-05,2]
[394504405,1763644232361,-682.77491552,6.255e-05,2]
[394504407,1763644232370,-682.77491552,6.255e-05,2]
[394504409,1763644232379,-682.77491552,6.255e-05,2]
[394504411,1763644232388,-682.77491552,6.255e-05,2]
[394504413,1763644232397,-682.77491552,6.255e-05,2]
[394504415,1763644232407,-682.77491552,6.255e-05,2]
[394504417,1763644232417,-682.77491552,6.255e-05,2]
[394504418,1763644232426,-682.77491552,6.255e-05,2]
[394504433,1763644232558,-682.77491552,6.255e-05,2]
[394504435,1763644232568,-682.77491552,6.255e-05,2]
[394504437,1763644232578,-682.77491552,6.255e-05,2]
[394504439,1763644232587,-682.77491552,6.255e-05,2]
[394504441,1763644232596,-682.77491552,6.255e-05,2]
[394504443,1763644232606,-682.77491552,6.255e-05,2]
[394504445,1763644232615,-682.77491552,6.255e-05,2]
[394504447,1763644232624,-682.77491552,6.255e-05,2]
[394504449,1763644232634,-682.77491552,6.255e-05,2]
[394504451,1763644232643,-682.77491552,6.255e-05,2]
[394504453,1763644232652,-682.77491552,6.255e-05,2]
[394504455,1763644232661,-682.77491552,6.255e-05,2]
[394504457,1763644232671,-682.77491552,6.255e-05,2]
[394504459,1763644232680,-682.77491552,6.255e-05,2]
[394504461,1763644232689,-686.16905746,6.255e-05,2]
[394504463,1763644232698,-686.16905746,6.255e-05,2]
[394504465,1763644232708,-686.16905746,6.255e-05,2]
[394504467,1763644232717,-686.16905746,6.255e-05,2]
[394504469,1763644232726,-686.16905746,6.255e-05,2]
[394504471,1763644232736,-686.16905746,6.255e-05,2]
[394504473,1763644232746,-686.16905746,6.255e-05,2]
[394504475,1763644232756,-686.16905746,6.255e-05,2]
[394504477,1763644232765,-686.16905746,6.255e-05,2]
[394504479,1763644232774,-686.16905746,6.255e-05,2]
[394504481,1763644232783,-686.16905746,6.255e-05,2]
[394504483,1763644232792,-686.16905746,6.255e-05,2]
[394504484,1763644232801,-70.87088483,6.255e-05,2]
[394504714,1763644240309,-0.0007067,6.255e-05,2]
[394504716,1763644240320,-615.29746593,6.255e-05,2]
[394504718,1763644240329,-43.16153906,6.255e-05,2]
[394504727,1763644244499,-643.0075184,6.255e-05,2]
[394504728,1763644244509,-686.16905746,6.255e-05,2]
[394504729,1763644244519,-398.15606559,6.255e-05,2]
[394504730,1763644245261,-288.01299187,6.255e-05,2]
[394504731,1763644245271,-130.92558431,6.255e-05,2]
[394504732,1763644245283,-277.57539673,6.255e-05,2]
[394504733,1763644245295,-277.66807642,6.255e-05,2]
[394504734,1763644245304,-686.16905746,6.255e-05,2]
[394504735,1763644245313,-129.88795347,6.255e-05,2]
[394504776,1763644246625,223.02480012,0.00013998,7]
[394504778,1763644246638,-556.28110399,6.255e-05,2]
[394504780,1763644246648,-686.16905746,6.255e-05,2]
[394504782,1763644246658,-686.16905746,6.255e-05,2]
[394504784,1763644246668,-686.16905746,6.255e-05,2]
[394504786,1763644246677,-686.16905746,6.255e-05,2]
[394504788,1763644246687,-686.16905746,6.255e-05,2]
[394504790,1763644246696,-686.16905746,6.255e-05,2]
[394504792,1763644246705,-686.16905746,6.255e-05,2]
[394504794,1763644246715,-686.16905746,6.255e-05,2]
[394504796,1763644246724,-686.16905746,6.255e-05,2]
[394504798,1763644246733,-686.16905746,6.255e-05,2]
[394504800,1763644246742,-686.16905746,6.255e-05,2]
[394504802,1763644246752,-110.67538654,6.255e-05,2]
[394505279,1763644254023,1261.66272841,6.192e-05,2]
[394505280,1763644261799,1261.66272841,6.192e-05,2]
[394505282,1763644269797,422.39037386,6.192e-05,2]
[394505288,1763644277657,1261.66272841,6.192e-05,2]
[394505299,1763644285676,1261.66272841,6.192e-05,2]
[394505300,1763644301005,173.7238438,6.192e-05,2]
[394505301,1763644303098,256.776,6.194e-05,2]
[394505302,1763644305452,2944.98081422,6.155e-05,2]
[394505304,1763644308835,173.7238438,6.192e-05,2]
[394505311,1763644324027,6799.71419378,6.191e-05,2]
[394505313,1763644331864,300.0,6.19e-05,2]
[394505314,1763644337797,156.81160274,0.00039406,30]
[394505315,1763644340146,-300.0,6.253e-05,2]
[394505316,1763644340184,-500.0,6.254e-05,2]
[394505317,1763644340218,-500.0,6.254e-05,2]
[394505318,1763644340252,-500.0,6.254e-05,2]